Cogmind - Beta 13 @@@ ROGUE MODE // 2024.06.22 @ 21:48:57 Player: star Result: Self-destructed Performance ------------- Evolutions (1) 500 Regions Visited (2) 400 Robots Destroyed (26) 130 Value Destroyed (490) 490 Prototype IDs (2) 40 Alien Tech Used (0) 0 Bonus (0) 0 TOTAL SCORE: 1560 Bonus ------- None Cogmind --------- Core Integrity 400/400 Matter 300/300 Energy 280/280 System Corruption 0% Temperature Cool (0) Movement Treading (240) Ox1 Location -9/Materials Parts ------- > --- POWER (1) -------- Heavy Ion Engine > --- PROPULSION (4) --- Light Treads Light Treads Light Treads Light Treads > --- UTILITY (2) ------ Huge Storage Unit Hardened Light Armor Plating > --- WEAPON (2) ------- Heavy EM Pulse Gun Heavy EM Pulse Gun > --- INVENTORY (25) --- Reinforced Ion Engine Reinforced Ion Engine Reinforced Ion Engine Reinforced Ion Engine Light Treads Light Treads Light Treads Light Treads Cesium-ion Thruster Cesium-ion Thruster Cesium-ion Thruster Cesium-ion Thruster Small Storage Unit Weight Redist. System Hardened Light Armor Plating Hardened Light Armor Plating Small Laser Beam Rifle Faulty Improved Medium Laser Assault Rifle Light Assault Rifle Shock Bomb Launcher Grenade Launcher Peak State ------------ > --- POWER ------------ Heavy Ion Engine > --- PROPULSION ------- Light Treads Light Treads Light Treads Light Treads > --- UTILITY ---------- Huge Storage Unit Hardened Light Armor Plating > --- WEAPON ----------- Heavy EM Pulse Gun Beam Rifle > --- INVENTORY -------- Reinforced Ion Engine Reinforced Ion Engine Reinforced Ion Engine Reinforced Ion Engine Light Treads Light Treads Light Treads Cesium-ion Thruster Cesium-ion Thruster Cesium-ion Thruster Cesium-ion Thruster Small Storage Unit Weight Redist. System Hardened Light Armor Plating Hardened Light Armor Plating Small Laser Improved Medium Laser Assault Rifle Light Assault Rifle Shock Bomb Launcher Grenade Launcher [Rating: 18] Favorites ----------- Power Reinforced Ion Engine Engine Reinforced Ion Engine Propulsion Light Treads Treads Light Treads Utility Huge Storage Unit Device Weight Redist. System Storage Huge Storage Unit Protection Hardened Light Armor Plating Weapon Heavy EM Pulse Gun Energy Gun Heavy EM Pulse Gun Ballistic Gun Assault Rifle Build | -11 -10 -9 ------- Run | Yrd Mat Mat Slots Evolved 2 | . . 2 Power . | . . . Propulsion 2 | . . 2 Utility . | . . . Weapon . | . . . Parts Attached 30 | 7 9 14 Power 3 | 1 1 1 Engine 3 | 1 1 1 Core . | . . . Reactor . | . . . Propulsion 8 | 2 . 6 Treads 8 | 2 . 6 Leg . | . . . Wheel . | . . . Hover . | . . . Flight . | . . . Utility 4 | 1 2 1 Device 1 | . 1 . Storage 2 | 1 1 . Processor . | . . . Hackware . | . . . Protection 1 | . . 1 Artifact . | . . . Weapon 15 | 3 6 6 Energy Gun 10 | . 6 4 Energy Cannon . | . . . Ballistic Gun 5 | 3 . 2 Ballistic Cannon . | . . . Launcher . | . . . Special Weapon . | . . . Impact Weapon . | . . . Slashing Weapon . | . . . Piercing Weapon . | . . . Special Melee Weapon . | . . . Unidentified Prototypes 2 | . . 2 Parts Lost 3 | . 2 1 Power . | . . . Propulsion . | . . . Utility . | . . . Weapon 3 | . 2 1 Highest Loss Streak 1 | . 1 1 To Critical Strikes . | . . . Average Slot Usage (%) 96 | . 92 99 Engine 12 | . 14 11 Treads 36 | . 28 44 Device 4 | . 6 2 Storage 12 | . 14 11 Protection 4 | . . 7 Energy Gun 22 | . 26 18 Ballistic Gun 2 | . . 3 Naked Turns . | . . . Heaviest Build 101 | 13 101 101 Greatest Support 86 | 40 46 86 Greatest Overweight (x) 2 | . 2 1 Average Overweight (x) 1 | . 1 1 Largest Inventory Capacity 25 | 8 25 25 Average Capacity 23 | 6 23 25 Most Carried 23 | 1 10 23 Average Carried 12 | . 8 17 Final Capacity 25 | 8 25 25 Final Carried 23 | . 10 23 Class Distribution -------------------- 100% | Mutant Dominant Class ---------------- Mutant | -10/Materials Mutant | -9/Materials Resources | -11 -10 -9 ----------- Run | Yrd Mat Mat Matter Collected 526 | 230 125 171 Remotely . | . . . Salvage Created 776 | . 411 365 Parts 55 | . 33 22 Haulers Intercepted 3 | . 1 2 Recyclers Shooed 1 | . . 1 Parts Field Recycled . | . . . Retrieved Matter . | . . . Parts Self-Destructed . | . . . Prevented . | . . . Kills | -11 -10 -9 ------- Run | Yrd Mat Mat Combat Hostiles Destroyed 20 | . 13 7 Guns 15 | . 9 6 AOE 5 | . 4 1 Classes Destroyed 6 | . 5 1 Builder 2 | . 2 . Hauler 3 | . 1 2 Operator 1 | . 1 . Swarmer 11 | . 9 2 Grunt 7 | . 4 3 Sentry 2 | . . 2 Best Kill Streak 5 | . 5 2 Combat Bots Only 3 | . 3 2 Max Kills in Single Turn 3 | . 3 1 Gunslinging . | . . . Exploded 1 | . 1 1 Melee . | . . . Uniques/NPCs Destroyed . | . . . Combat | -11 -10 -9 -------- Run | Yrd Mat Mat Hostile Shots Fired 74 | . 56 18 Missed 17 | . 11 6 Damage Taken 642 | . 480 162 Core 114 | . 114 . Absorbed by Shields . | . . . Core Remaining (%) 77 | 100 54 . Volleys Fired 46 | . 26 20 Largest 2 | . 2 2 Hottest 101 | . 90 101 Shots Fired 91 | . 51 40 Gun 91 | . 51 40 Cannon . | . . . Launcher . | . . . Special . | . . . Kinetic 12 | . . 12 Thermal 3 | . . 3 Explosive . | . . . Electromagnetic 76 | . 51 25 Robot Hit Streak 8 | . 4 8 Robot Miss Streak 7 | . 7 2 Penetration Max . | . . . Secondary Targets . | . . . Shots Hit Robots 50 | . 25 25 Core Hits 30 | . 18 12 Critical Kills . | . . . Critical Parts Destroyed . | . . . Critical Strikes 2 | . 1 1 Corrupt 2 | . 1 1 Melee Attacks . | . . . Impact . | . . . Slashing . | . . . Piercing . | . . . Sneak Attacks . | . . . Combat Hostiles . | . . . Follow-up Attacks . | . . . Damage Inflicted 1103 | . 606 497 Guns 774 | . 388 386 Cannons . | . . . Explosions 329 | . 218 111 Melee . | . . . Ramming . | . . . Kinetic 77 | . . 77 Thermal 358 | . 218 140 Explosive . | . . . Electromagnetic 668 | . 388 280 Impact . | . . . Slashing . | . . . Piercing . | . . . Highest Corruption . | . . . Average Corruption . | . . . Corruption Purged . | . . . Corruption Blocked . | . . . Overload Shots . | . . . Overflow Damage . | . . . Projectiles . | . . . Explosions . | . . . Melee . | . . . Knockbacks . | . . . Impact . | . . . Kinetic . | . . . Secondary . | . . . Self-Inflicted Damage 136 | . 106 30 Shots 5 | . 4 1 Rammed 1 | . 1 . Targets Rammed 1 | . 1 . Kicked . | . . . Crushed . | . . . Highest Temperature 276 | . 276 117 Average Temperature 69 | . 89 38 Received Heat Transfer 93 | . 60 33 Siege Activations . | . . . Robots Corrupted . | . . . Combat Hostiles . | . . . Parts Fried . | . . . Impact Corruptions . | . . . Robots Melted . | . . . Combat Hostiles . | . . . Parts Melted 1 | . 1 . Heat Transferred 624 | . 350 274 Parts Sabotaged . | . . . Parts Stolen . | . . . Parts Stripped . | . . . Power Chain Reactions 6 | . 4 2 Alert | -11 -10 -9 ------- Run | Yrd Mat Mat Peak Influence 212 | . 212 145 Initial 63 | . . 63 Average 69 | . 93 57 Maximum Alert Level 1 | . 1 . Low Security (%) 98 | 100 95 100 Level 1 1 | . 4 . Level 2 . | . . . Level 3 . | . . . Level 4 . | . . . Level 5 . | . . . High Security . | . . . Max Security . | . . . Squads Dispatched 6 | . 3 3 Investigation 2 | . 1 1 Extermination . | . . . Reinforcement 4 | . 2 2 Assault . | . . . Garrison . | . . . Intercept . | . . . Searches Triggered . | . . . Construction Impeded . | . . . Haulers Reinforced . | . . . Active Scanning Responses . | . . . Cargo Convoy Interrupts . | . . . Stealth | -11 -10 -9 --------- Run | Yrd Mat Mat Distress Signals 2 | . 2 . Communications Jammed . | . . . Distress Signals . | . . . Times Spotted 40 | . 24 16 Peak Tracking Total 5 | . 5 4 Tactical Retreats 1 | . . 1 Traps | -11 -10 -9 ------- Run | Yrd Mat Mat Traps Triggered 1 | . 1 . Indirectly . | . . . Trap Hack Attempts . | . . . Triggered . | . . . Disarmed . | . . . Reprogrammed . | . . . Reused . | . . . Traps Extracted . | . . . Installed . | . . . Triggered . | . . . Machines | -11 -10 -9 ---------- Run | Yrd Mat Mat Machines Disabled 2 | . 2 . Max in Single Turn 1 | . 1 . Machines Repaired . | . . . Machines Dismantled . | . . . Machines Sabotaged . | . . . Overloaded Fab Kills . | . . . Hacking | -11 -10 -9 --------- Run | Yrd Mat Mat Machines Accessed 8 | . 4 4 Terminals 5 | . 2 3 Fabricators . | . . . Repair Stations . | . . . Recycling Units 2 | . 2 . Scanalyzers 1 | . . 1 Garrison Access . | . . . Total Hacks 17 | . 7 10 Successful 5 | . 1 4 Failed 12 | . 6 6 Catastrophic 5 | . 2 3 Database Lockouts . | . . . Manual 11 | . 3 8 Terminals 11 | . 3 8 Fabricators . | . . . Repair Stations . | . . . Recycling Units 4 | . 4 . Scanalyzers 2 | . . 2 Garrison Access . | . . . Terminal Hacks 1 | . 1 . Hauler Manifests 1 | . 1 . Fabricator Hacks . | . . . Repair Station Hacks . | . . . Recycling Unit Hacks . | . . . Scanalyzer 2 | . . 2 Insert Component 1 | . . 1 Analyze 1 | . . 1 Garrison Access Hacks . | . . . Unauthorized Hacks 2 | . . 2 Terminals 2 | . . 2 Botnet 2 | . . 2 Fabricators . | . . . Repair Stations . | . . . Recycling Units . | . . . Scanalyzers . | . . . Garrison Access . | . . . Data Cores Recovered . | . . . Used . | . . . Hacking Detections 7 | . 4 3 Full Trace Events 2 | . 1 1 Feedback Events . | . . . Feedback Blocked . | . . . Robot Schematics Acquired . | . . . Robots Built . | . . . Authchips . | . . . Time . | . . . Total Robot Build Rating . | . . . Part Schematics Acquired 1 | . . 1 Parts Built . | . . . Authchips . | . . . Time . | . . . Total Part Build Rating . | . . . Parts Repaired . | . . . Time . | . . . Parts Recycled . | . . . Recycled Matter . | . . . Retrieved Matter . | . . . Retrieved Components . | . . . Parts Scanalyzed 1 | . . 1 Part Schematics Acquired 1 | . . 1 Parts Damaged . | . . . Bothacking | -11 -10 -9 ------------ Run | Yrd Mat Mat Used RIF Installer . | . . . Robots Hacked . | . . . Non-combat . | . . . Combat . | . . . Robot Hacks Applied . | . . . Relay Couplers Released . | . . . Fabnet Peak Effective % . | . . . Robots Rewired . | . . . Allies Hacked . | . . . Hacks Repelled . | . . . Allies | -11 -10 -9 -------- Run | Yrd Mat Mat Total Allies . | . . . Largest Group . | . . . Highest-Rated Group . | . . . Highest-Rated Ally . | . . . Total Orders . | . . . Ally Attacks . | . . . Total Damage . | . . . Kills . | . . . Allies Corrupted . | . . . Allies Melted . | . . . Intel | -11 -10 -9 ------- Run | Yrd Mat Mat Robot Analysis Total . | . . . Derelict Logs Recovered . | . . . Drone Launches . | . . . Drone Recoveries . | . . . Exploration | -11 -10 -9 ------------- Run | Yrd Mat Mat Turns Passed 2192 | 133 921 1138 Spaces Moved 764 | 78 269 417 Core 3 | 3 . . Treads 761 | 75 269 417 Legs . | . . . Wheels . | . . . Hover . | . . . Flight . | . . . Fastest Speed 50 | 50 160 240 Average Speed 249 | 155 291 240 Slowest Speed 320 | 160 320 240 Overloaded Moves . | . . . Propulsion Burnouts . | . . . Robots Hopped . | . . . Cave-ins Triggered . | . . . Exploration Rate (%) 30 | 6 54 32 Regions Visited 2 Branch Regions . Pre-discovered Areas . | . . . Known Exits Taken . | . . . Unknown Exits Taken 2 | 1 1 . Scrap Searched . | . . . Spaces Dug . | . . . Terrain Destroyed 18 | . 7 11 Melee . | . . . Projectile . | . . . AOE 18 | . 7 11 Terrain Rammed . | . . . Walls Destroyed . | . . . Machines Disabled . | . . . Actions | -11 -10 -9 --------- Run | Yrd Mat Mat Total 952 | 87 354 511 Wait 85 | 2 35 48 Move 762 | 77 268 417 Hop . | . . . Pick Up 16 | . 9 7 Fast Attach 15 | 6 5 4 Attach 7 | 1 2 4 Detach 10 | 1 4 5 Swap 8 | . 2 6 Drop 2 | . 2 . Fire 46 | . 26 20 Melee . | . . . Ram . | . . . Kick . | . . . Crush 1 | . 1 . Escape Stasis . | . . . Rewire . | . . . Trap . | . . . Miscellaneous . | . . . Route ------- -11/Scrapyard -10/Materials -9/Materials History --------- Turn | Location | Event 25 | -11/Scrapyard | Discovered new exit (range 14) 134 | -11/Scrapyard | Entered Materials 308 | -10/Materials | Build established: Mutant 981 | -10/Materials | Discovered new exit (range 12) 1055 | -10/Materials | Entered another Materials area 1055 | -9/Materials | Evolved 2 slots: Propulsion x2 2193 | -9/Materials | Self-destructed Last Messages --------------- 01852_ T-07 Excavator is excavating. 01964_ Connecting with Terminal... >>Trojan(Botnet) Trojan loaded successfully. Testing... Terminal linked with 1 system. Awaiting botnet instructions. 02034_ Chain reaction triggered in Lgt. Ion Engine. 02034_ S-10 Pest destroyed. 02040_ Acquired 17 matter. 02047_ Acquired 3 matter. 02048_ U-05 Engineer lays Concrete. 02115_ Y-45 Defender destroyed. 02135_ R-06 Scavenger collects Heat Sink. 02141_ R-06 Scavenger collects Corrupted Heat Sink. 02143_ R-06 Scavenger collects Beam Rifle. 02168_ Acquired 10 matter. 02184_ O-16 Technician: "IFF HANDSHAKE FAILED. SECURING TERMINAL." 02186_ ALERT: Hostiles spotted, dispatching reinforcements to Terminal M007. Map ----- +----------------------------------------------------+ | | | | | | | | | | | | | | | | | | | | | ????????????????????###########??????????????????? | | ????????????????????# [[ ##?????????????????? | | ????????????????????# [! #?????????????????? | | ????????????????????# [ #??????#######?????? | | ????????????????????# ######## #?????? | | ????????????????????#####+######"#""## #?????? | | ????????????????????????#%#???# T #?????? | | ????????????????????????# #???# % ### ####### | | ????????????????????????# #???# "## ## # | | ????????????????????????# #???# #""##### #### # | | ????????????????????????# #???# # # #??# # | | ????????????????????????# ##### # """ # #??# "" # | | ????????????????????????# + """ # #??# "" # | | ????????????????????????# ####### """ # #### "T # | | ????????????????????????# #?????# # + "" # | | ????????????????????????#@#?????# !# # "" # | | ????????????????????????# #?????######## # # | | ????????????????????????# #????+ ###### | | ???????????????????????? ????############ | | ???????????????????????? ???????????????# ###### | | ???????????????????????? ???????????????# #????? | | ???????????????????????? ?????????????###/###### | | ??????????????????????? #????????????# # | | ??????????????????????? ????????????# # | | ??????????????????????? ????????????# """ # | | ??????????????????????? ????????????# """"" + | | ??????????????????????"" [u#????????????# """"" # | | ??????????????????????"" t #????????????# """"" # | | ???????????????????????" ?????????????# """ # | | ???????????????????????? ?????????????# [# | | ????????????? ?????????? ?????????????# # | | ????????????? ??????????????????????????##+####### | | ??????????### ???????????????????????????# #?????? | | ?????????? ???????????????????????????# #?????? | | ?????????? #???????????????????????????# #?????? | | ?????????? #?????????????#####???#######+###???? | | ?????????# #????????????? ##### #???? | | ?????????# ####????????# """ ## + ! #???? | | ?????????+ ?????????# """ ## # #???? | | ?????????# #?????????# """ ## # #???? | +----------------------------------------------------+ Best States ------------- Heat Dissipation 28 Energy Generation 14 Energy Capacity 280 Matter Stores 300 Matter Capacity 300 Sight Range 16 Terrain Scan Density 10 Additional Mass Support 6 Armor Coverage 150 Evasion (%) 40 Recoil Reduction 4 Item Schematics ----------------- Cesium-ion Thruster | -9/Materials | Scanalyzed Robot Schematics ------------------ None Fabricated ------------ Nothing Alien Tech Used ----------------- None Achievements -------------- None Challenges ------------ None Game ------ Seed SigixZhirovAutogun Manual? 0 Play Time 00:14:04 Cumulative 41.6 hours Start 2024.06.03 @ 10:24:43 End 2024.06.22 @ 21:48:57 Sessions 3 Manual Loads 0 Difficulty Rogue Special Mode None Game No. 78 Rogue 78 Adventurer 0 Explorer 0 Win Type - Total 0 Types 0/0/0/0/0/0/0/0/0 Lore% 29 Gallery% 42 Achievement% 30 Wizard Run 0 Options --------- Layout 0 ASCII 0 Keyboard 1 Movement Numpad Keybinds 0 Fullscreen 1 Font 18/SmallcapsGlow Map View 76x50 Zoom Use 0% Tactical HUD 1 Map Filters NONE Filters NONE Steam 1 RUN: 77caa4ed-3997-4be1-8660-14c3297641fd